Cogmind - Beta 15 @@@ ROGUE MODE // 2025.10.04 @ 17:16:36 Player: Denial.Of.Name Result: Destroyed by D-53 Grenadier with Mini Grenade Launcher Performance ------------- Evolutions (0) 0 Regions Visited (2) 400 Robots Destroyed (10) 50 Value Destroyed (146) 146 Prototype IDs (0) 0 Alien Tech Used (0) 0 Bonus (0) 0 TOTAL SCORE: 596 Bonus ------- None Cogmind --------- Core Integrity 0/250 Matter 280/300 Energy 98/100 System Corruption 0% Temperature Cool (1) Movement Walking (260) Ox2 Location -10/Mines Parts ------- > --- POWER (1) -------- (None) > --- PROPULSION (2) --- Aluminum Leg > --- UTILITY (2) ------ Small Storage Unit Large Storage Unit > --- WEAPON (2) ------- (None) > --- INVENTORY (15) --- Aluminum Leg Large Storage Unit High-capacity Storage Unit High-capacity Battery (250) Structural Scanner Visual Processing Unit Sensor Array Signal Interpreter Power Shielding Assault Rifle Light Cannon Light Cannon Light Cannon Peak State ------------ > --- POWER ------------ Light Ion Engine > --- PROPULSION ------- Aluminum Leg Aluminum Leg > --- UTILITY ---------- Small Storage Unit Large Storage Unit > --- WEAPON ----------- Medium Laser Assault Rifle > --- INVENTORY -------- Light Ion Engine Light Ion Engine Aluminum Leg Aluminum Leg Aluminum Leg High-capacity Storage Unit Small Matter Pod Power Shielding Light Cannon Light Cannon [Rating: 8] Favorites ----------- Power Light Ion Engine Engine Light Ion Engine Propulsion Aluminum Leg Leg Aluminum Leg Utility Small Storage Unit Storage Small Storage Unit Weapon Light Cannon Energy Gun Medium Laser Ballistic Gun Assault Rifle Ballistic Cannon Light Cannon Build | -11 -10 -10 ------- Run | Yrd Mat Min Slots Evolved . | . . . Power . | . . . Propulsion . | . . . Utility . | . . . Weapon . | . . . Parts Attached 14 | 6 5 3 Power 3 | 1 . 2 Engine 3 | 1 . 2 Core . | . . . Reactor . | . . . Propulsion 3 | 2 . 1 Treads . | . . . Leg 3 | 2 . 1 Wheel . | . . . Hover . | . . . Flight . | . . . Utility 4 | 1 3 . Device . | . . . Storage 4 | 1 3 . Processor . | . . . Hackware . | . . . Protection . | . . . Artifact . | . . . Weapon 4 | 2 2 . Energy Gun 1 | 1 . . Energy Cannon . | . . . Ballistic Gun 1 | 1 . . Ballistic Cannon 2 | . 2 . Launcher . | . . . Special Weapon . | . . . Impact Weapon . | . . . Slashing Weapon . | . . . Piercing Weapon . | . . . Special Melee Weapon . | . . . Unidentified Prototypes . | . . . Parts Lost 6 | . . 6 Power 2 | . . 2 Propulsion 2 | . . 2 Utility . | . . . Weapon 2 | . . 2 Highest Loss Streak 6 | . . 6 To Critical Strikes . | . . . Average Backups 12 | 2 13 14 Power 1 | . 1 1 Propulsion 2 | 2 3 1 Utility 4 | . 4 7 Weapon 3 | . 3 4 Tool/Special . | . . . Unused Backups 19 | 2 6 11 Power . | . . . Propulsion 7 | 2 4 1 Utility 7 | . . 7 Weapon 5 | . 2 3 Tool/Special . | . . . Average Slot Usage (%) 98 | . 99 95 Engine 14 | . 14 14 Leg 27 | . 28 26 Storage 27 | . 27 28 Energy Gun 2 | . 2 . Ballistic Gun 2 | . 2 . Ballistic Cannon 22 | . 22 26 Peak Build Rating 8 | 6 8 8 Average Rating 7 | 4 7 7 On Entrance 4 | . 6 8 Naked Turns . | . . . Heaviest Build 34 | 8 34 34 Greatest Support 20 | 20 20 20 Greatest Overweight (x) 2 | . 1 2 Average Overweight (x) . | . . 1 Largest Inventory Capacity 20 | 5 20 15 Average Capacity 13 | 5 13 15 Most Carried 15 | 5 15 15 Average Carried 12 | 2 13 14 Final Capacity 15 | 5 15 15 Final Carried 15 | 5 15 13 Class Distribution -------------------- 100% | Mutant Dominant Class ---------------- Mutant | -10/Materials Mutant | -10/Mines Resources | -11 -10 -10 ----------- Run | Yrd Mat Min Matter Collected 529 | 322 183 24 Remotely . | . . . Salvage Created 145 | 59 86 . Parts 26 | 11 15 . Haulers Intercepted . | . . . Recyclers Shooed 1 | . 1 . Parts Field Recycled . | . . . Retrieved Matter . | . . . Parts Self-Destructed . | . . . Prevented . | . . . Kills | -11 -10 -10 ------- Run | Yrd Mat Min Combat Hostiles Destroyed 8 | 1 7 . Guns 1 | 1 . . Cannons 7 | . 7 . Classes Destroyed 4 | 3 1 . Worker 1 | 1 . . Tunneler 1 | 1 . . Swarmer 6 | . 6 . Grunt 2 | 1 1 . Best Kill Streak 3 | 2 3 . Combat Bots Only 3 | 1 3 . Max Kills in Single Turn 1 | 1 1 . Gunslinging . | . . . Exploded . | . . . Melee . | . . . Uniques/NPCs Destroyed . | . . . Combat | -11 -10 -10 -------- Run | Yrd Mat Min Hostile Shots Fired 54 | 2 34 18 Missed 12 | . 11 1 Hits 42 | 2 23 17 Projectile 42 | 2 23 17 AOE 18 | . . 18 Damage Taken 869 | 21 185 663 Core 252 | . 35 217 Absorbed by Shields . | . . . Core Remaining (%) 100 | 100 . . Volleys Fired 27 | 4 16 7 Largest 2 | 2 2 2 Hottest 70 | 70 60 60 Shots Fired 51 | 8 32 11 Gun 8 | 8 . . Cannon 43 | . 32 11 Launcher . | . . . Special . | . . . Kinetic 47 | 4 32 11 Thermal 4 | 4 . . Explosive . | . . . Electromagnetic . | . . . Robot Hit Streak 3 | 3 2 3 Robot Miss Streak 4 | 1 4 2 Penetration Max . | . . . Secondary Targets . | . . . Shots Hit Robots 21 | 4 11 6 Core Hits 11 | 3 7 1 Critical Kills . | . . . Critical Parts Destroyed . | . . . Critical Strikes . | . . . Melee Attacks . | . . . Impact . | . . . Slashing . | . . . Piercing . | . . . Sneak Attacks . | . . . Combat Hostiles . | . . . Follow-up Attacks . | . . . Damage Inflicted 390 | 52 230 108 Guns 52 | 52 . . Cannons 332 | . 224 108 Explosions . | . . . Melee . | . . . Ramming 6 | . 6 . Kinetic 371 | 39 224 108 Thermal 13 | 13 . . Explosive . | . . . Electromagnetic . | . . . Impact . | . . . Slashing . | . . . Piercing . | . . . Highest Corruption . | . . . Average Corruption . | . . . Corruption Purged . | . . . Corruption Blocked . | . . . Overload Shots . | . . . Overflow Damage . | . . . Projectiles . | . . . Explosions . | . . . Melee . | . . . Knockbacks 5 | . 4 1 Impact . | . . . Kinetic 5 | . 4 1 Secondary . | . . . Self-Inflicted Damage . | . . . Shots . | . . . Rammed . | . . . Targets Rammed 2 | . 2 . Kicked 2 | . 2 . Crushed . | . . . Highest Temperature 15 | 15 6 . Average Temperature 7 | 7 6 . Received Heat Transfer 18 | 12 6 . Siege Activations . | . . . Martial Activations . | . . . Shielding Activations . | . . . Robots Disrupted . | . . . Combat Hostiles . | . . . Robots Corrupted . | . . . Combat Hostiles . | . . . Parts Fried . | . . . Impact Corruptions . | . . . Robots Melted . | . . . Combat Hostiles . | . . . Parts Melted . | . . . Heat Transferred 37 | 37 . . Parts Sabotaged . | . . . Parts Stolen . | . . . Parts Stripped . | . . . Power Chain Reactions . | . . . Alert | -11 -10 -10 ------- Run | Yrd Mat Min Maximum Alert Level . | . . . Low Security (%) 100 | 100 100 100 Level 1 . | . . . Level 2 . | . . . Level 3 . | . . . Level 4 . | . . . Level 5 . | . . . High Security . | . . . Max Security . | . . . Peak Influence 109 | 21 109 25 Initial 25 | . 10 25 Average 15 | 3 18 6 Influence Increases 242 | 31 196 15 Destroy 0b10 Robot/C 160 | 20 140 . Destroy 0b10 Robot/NC 10 | 10 . . Destroy Leader 30 | . 30 . Successful Hack 10 | . 10 . Disable Machine 15 | . 15 . Destroy Structure 2 | 1 1 . Lose Combat Pursuer 15 | . . 15 Influence Decreases 242 | 15 145 82 Entered New Map 48 | . 6 42 Time Decay 179 | 15 139 25 Lost Part 15 | . . 15 Squads Dispatched 2 | . 2 . Investigation . | . . . Extermination . | . . . Reinforcement 2 | . 2 . Assault . | . . . Garrison . | . . . Intercept . | . . . Searches Triggered . | . . . Construction Impeded . | . . . Haulers Reinforced . | . . . Active Scanning Responses . | . . . Cargo Convoy Interrupts . | . . . Stealth | -11 -10 -10 --------- Run | Yrd Mat Min Distress Signals 1 | . 1 . Communications Jammed . | . . . Distress Signals . | . . . Times Spotted 13 | 1 9 3 Peak Tracking Total 3 | 1 3 2 Tactical Retreats 1 | . . 1 Traps | -11 -10 -10 ------- Run | Yrd Mat Min Traps Triggered . | . . . Indirectly . | . . . Trap Hack Attempts . | . . . Triggered . | . . . Disarmed . | . . . Reprogrammed . | . . . Reused . | . . . Traps Extracted . | . . . Installed . | . . . Triggered . | . . . Machines | -11 -10 -10 ---------- Run | Yrd Mat Min Machines Disabled 1 | . 1 . Max in Single Turn 1 | . 1 . Machines Repaired . | . . . Machines Dismantled . | . . . Machines Sabotaged . | . . . Overloaded Fab Kills . | . . . Hacking | -11 -10 -10 --------- Run | Yrd Mat Min Machines Accessed 4 | . 4 . Terminals 4 | . 4 . Fabricators . | . . . Repair Stations . | . . . Recycling Units . | . . . Scanalyzers . | . . . Garrison Access . | . . . Total Hacks 6 | . 6 . Successful 4 | . 4 . Failed 2 | . 2 . Catastrophic . | . . . Database Lockouts . | . . . Manual . | . . . Terminals 6 | . 6 . Fabricators . | . . . Repair Stations . | . . . Recycling Units . | . . . Scanalyzers . | . . . Garrison Access . | . . . Terminal Hacks 4 | . 4 . Record 2 | . 2 . Robot Analysis 1 | . 1 . Hauler Manifests 1 | . 1 . Fabricator Hacks . | . . . Repair Station Hacks . | . . . Recycling Unit Hacks . | . . . Scanalyzer . | . . . Garrison Access Hacks . | . . . Unauthorized Hacks . | . . . Terminals . | . . . Fabricators . | . . . Repair Stations . | . . . Recycling Units . | . . . Scanalyzers . | . . . Garrison Access . | . . . Data Cores Recovered . | . . . Used . | . . . Hacking Detections 1 | . 1 . Full Trace Events . | . . . Feedback Events . | . . . Feedback Blocked . | . . . Robot Schematics Acquired . | . . . Robots Built . | . . . Authchips . | . . . Time . | . . . Total Robot Build Rating . | . . . Part Schematics Acquired . | . . . Parts Built . | . . . Authchips . | . . . Time . | . . . Total Part Build Rating . | . . . Parts Repaired . | . . . Time . | . . . Parts Recycled . | . . . Recycled Matter . | . . . Retrieved Matter . | . . . Retrieved Components . | . . . Parts Scanalyzed . | . . . Part Schematics Acquired . | . . . Parts Damaged . | . . . Bothacking | -11 -10 -10 ------------ Run | Yrd Mat Min Used RIF Installer . | . . . Robots Hacked . | . . . Non-combat . | . . . Combat . | . . . Robot Hacks Applied . | . . . Relay Couplers Released . | . . . Fabnet Peak Effective % . | . . . Robots Rewired . | . . . Allies Hacked . | . . . Hacks Repelled . | . . . Allies | -11 -10 -10 -------- Run | Yrd Mat Min Total Allies . | . . . Largest Group . | . . . Highest-Rated Group . | . . . Highest-Rated Ally . | . . . Total Orders . | . . . Ally Attacks . | . . . Total Damage . | . . . Kills . | . . . Allies Corrupted . | . . . Allies Melted . | . . . Intel | -11 -10 -10 ------- Run | Yrd Mat Min Active Infowar (turns) . | . . . Robot Analysis Total 1 | . 1 . Derelict Logs Recovered 1 | . . 1 Drone Launches . | . . . Drone Recoveries . | . . . Exploration | -11 -10 -10 ------------- Run | Yrd Mat Min Turns Passed 1096 | 115 849 132 Spaces Moved 582 | 83 442 57 Core 22 | 22 . . Treads . | . . . Legs 560 | 61 442 57 Wheels . | . . . Hover . | . . . Flight . | . . . Fastest Speed 50 | 50 120 190 Average Speed 165 | 101 173 194 Slowest Speed 260 | 120 190 260 Overloaded Moves . | . . . Propulsion Burnouts . | . . . Robots Hopped . | . . . Potential Cave-ins . | . . . Cave-ins Triggered . | . . . Exploration Rate (%) 33 | 8 74 17 Regions Visited 2 Branch Regions 1 Pre-discovered Areas 1 | . . 1 Known Exits Taken . | . . . Unknown Exits Taken 2 | 1 1 . Scrap Searched 1 | . . 1 Spaces Dug . | . . . Terrain Destroyed . | . . . Melee . | . . . Projectile . | . . . AOE . | . . . Terrain Rammed . | . . . Walls Destroyed . | . . . Machines Disabled . | . . . Actions | -11 -10 -10 --------- Run | Yrd Mat Min Total 670 | 107 494 69 Wait . | . . . Move 580 | 82 441 57 Hop . | . . . Pick Up 34 | 13 20 1 Fast Attach . | . . . Attach 9 | 6 1 2 Detach . | . . . Swap 6 | . 5 1 Drop 12 | 2 9 1 Fire 27 | 4 16 7 Melee . | . . . Ram . | . . . Kick 2 | . 2 . Crush . | . . . Escape Stasis . | . . . Rewire . | . . . Trap . | . . . Miscellaneous . | . . . Route ------- -11/Scrapyard -10/Materials (discovered 4 exits: [*Mat x2] / [*Min] / [*Sub]) -10/Mines History --------- Turn | Location | Event 2 | -11/Scrapyard | Met Revision 17 91 | -11/Scrapyard | Discovered new exit (range 8) 116 | -11/Scrapyard | Entered Materials 117 | -10/Materials | Met a group of wandering Federalists 321 | -10/Materials | Build established: Mutant 331 | -10/Materials | Discovered new exit (range 11) 564 | -10/Materials | Discovered new exit (range 11) 695 | -10/Materials | Discovered new exit (range 16) 893 | -10/Materials | Discovered new exit (range 10) 965 | -10/Materials | Entered Mines 1031 | -10/Mines | Assembled infested the area 1093 | -10/Mines | Core integrity fell below 50% 1095 | -10/Mines | Core integrity fell below 20% 1097 | -10/Mines | Destroyed by D-53 Grenadier with Mini Grenade Launcher Last Messages --------------- D-53 Grenadier knocked back. K-01 Serf collects debris. The unstable cave ceiling collapses. Aluminum Leg destroyed. The unstable cave ceiling collapses. K-01 Serf destroyed. The unstable cave ceiling collapses. R-06 Scavenger destroyed. Lgt. Cannon destroyed. The unstable cave ceiling collapses. Lgt. Ion Engine destroyed. Lgt. Cannon destroyed. The unstable cave ceiling collapses. Aluminum Leg destroyed. The unstable cave ceiling collapses. Lgt. Ion Engine destroyed. The unstable cave ceiling collapses. R-06 Scavenger collects Lgt. Ion Engine. The unstable cave ceiling collapses. Acquired 14 matter. Map ----- +----------------------------------------------------+ | ?????????????????????????????????????????????????? | | ?????????????????????????????????????????????????? | | ?????????????????????????????????????????????????? | | ?????????????????????????????????????????????????? | | ?????????????????????????????????????????????????? | | ?????????????????????????????????????????????????? | | ?????????????????????????????????????????????????? | | ?????????????????????????????????????????????????? | | ?????????????????????????????????????????????????? | | ?????????????????????????????????????????????????? | | ?????????????????????????????????????????????????? | | ?????????????????????????????????????????????????? | | ?????????????????????????###?????????????????????? | | ????????????????????????? #????????????????????? | | ??????????????????#??????? ###?????????????????? | | ??????????????????# ?????? ##????????????????? | | ???????????????#### ??????? ##???????????????? | | ???????????????# ??????? #???????????????? | | ????????????????? ?????? #???????????????? | | ?????????????????? ??????? ##??????????????? | | ??????????????????? ?###### ###????????????? | | ????????????????????# ## # ######???????? | | ?????????????????????# # # #???????? | | ?????????????????????# #??????#? | | ?????????????????????# # """ #????? #? | | ?????????????????????# @ dr """ #????? #? | | ?????????????????????## # """ #????? #? | | ??????????????????????# # %# #?#### ## | | ??????????????????????# ### #? # | | ????????????????????###### d#?#######?? | | ????????????????????? ##!#?????????? | | ?????????????????????????### %#?????###### # | | ???????????????????????????# #?????# #?? | | ???????????????????????????#### #?????# ### ##?? | | ??????????????????????????????# #?????# #?# #??? | | ??????????????????????????????# #?????# #?####??? | | ??????????????????????????????# #?????# #???????? | | ?????????????????????????????## ##????# #???????? | | ?????????????????# ###### #????# #???????? | | ??????????????????# ###### #???????? | | ??????????????????# #???????? | | ??????????????????## ########???????? | | ???????????????????#### ## ##??????????????? | | ??????????????????????####??## ##???????????????? | | ?????????????????????????????###?????????????????? | | ?????????????????????????????????????????????????? | | ?????????????????????????????????????????????????? | | | | | | | +----------------------------------------------------+ Best States ------------- Heat Dissipation 25 Energy Generation 10 Energy Capacity 125 Matter Stores 350 Matter Capacity 350 Sight Range 16 Terrain Scan Density 10 Evasion (%) 55 Item Schematics ----------------- None Robot Schematics ------------------ None Fabricated ------------ Nothing Repaired ---------- Nothing Alien Tech Used ----------------- None Achievements -------------- Shopping List Challenges ------------ None Game ------ Seed SignalSpectralTelecube Manual? 0 Play Time 00:31:52 Cumulative 2.0 hours Start 2025.10.04 @ 16:41:14 End 2025.10.04 @ 17:16:36 Sessions 1 Manual Loads 0 Difficulty Rogue Special Mode None Game No. 2 Rogue 2 Adventurer 0 Explorer 0 Win Type - Total 0 Types 0/0/0/0/0/0/0/0/0/0 Lore% 0 Gallery% 3 Achievement% 3 Wizard Run 0 Options --------- Layout 1 ASCII 0 Keyboard 0 Movement Arrows Keybinds 0 Fullscreen 1 Font 32/Smallcaps Map View 50x35 Zoom Use 0% Tactical HUD 0 Map Filters NONE Filters NONE Steam 1 RUN: 4b70b730-6403-48dc-a5e6-75203167ece1